[Event "December 5 Early 2023"]
[Site "https://www.chess.com"]
[Date "2023.12.05"]
[Round "3"]
[White "Degenbaev, Aziz"]
[Black "Kamsky, Gata"]
[Result "0-1"]
[Board "57"]
[TimeControl "180+1"]
[WhiteFideId "13802640"]
[BlackFideId "2000024"]
[WhiteElo "2626"]
[BlackElo "2935"]
[WhiteTeam "KGZ"]
[BlackTeam "USA"]
[WhiteClock "0:00:06"]
[BlackClock "0:00:27"]

1. e4 {[%clk 0:03:00]}  c5 {[%clk 0:02:57]} 2. Nf3 {[%clk 0:03:00]}  e6 {[%clk 0:02:56]} 3. d4 {[%clk 0:03:00]}  cxd4 {[%clk 0:02:55]} 4. Nxd4 {[%clk 0:03:00]}  a6 {[%clk 0:02:55]} 5. c4 {[%clk 0:03:01]}  Nf6 {[%clk 0:02:50]} 6. Nc3 {[%clk 0:03:01]}  d6 {[%clk 0:02:47]} 7. Be3 {[%clk 0:02:54]}  b6 {[%clk 0:02:43]} 8. f4 {[%clk 0:02:52]}  Bb7 {[%clk 0:02:41]} 9. Qf3 {[%clk 0:02:45]}  Nbd7 {[%clk 0:02:39]} 10. Bd3 {[%clk 0:02:41]}  g6 {[%clk 0:02:22]} 11. O-O-O {[%clk 0:02:32]}  Bg7 {[%clk 0:02:19]} 12. g4 {[%clk 0:02:29]}  e5 {[%clk 0:02:12]} 13. Nc2 {[%clk 0:02:11]}  exf4 {[%clk 0:02:11]} 14. Bxf4 {[%clk 0:02:11]}  Ne5 {[%clk 0:02:06]} 15. Bxe5 {[%clk 0:02:08]}  dxe5 {[%clk 0:02:06]} 16. c5 {[%clk 0:01:41]}  Qc7 {[%clk 0:02:00]} 17. g5 {[%clk 0:01:38]}  Nh5 {[%clk 0:01:57]} 18. cxb6 {[%clk 0:01:32]}  Qxb6 {[%clk 0:01:56]} 19. Bc4 {[%clk 0:01:23]}  O-O {[%clk 0:01:34]} 20. Ne3 {[%clk 0:01:13]}  Nf4 {[%clk 0:01:29]} 21. Kb1 {[%clk 0:01:09]}  Rad8 {[%clk 0:01:27]} 22. Ned5 {[%clk 0:01:01]}  Qc5 {[%clk 0:01:24]} 23. Bb3 {[%clk 0:00:57]}  Kh8 {[%clk 0:01:15]} 24. h4 {[%clk 0:00:55]}  Nh5 {[%clk 0:01:11]} 25. Nf6 {[%clk 0:00:29]}  Bxf6 {[%clk 0:01:06]} 26. gxf6 {[%clk 0:00:29]}  Qb6 {[%clk 0:01:00]} 27. Rxd8 {[%clk 0:00:24]}  Qxd8 {[%clk 0:00:59]} 28. Rf1 {[%clk 0:00:24]}  Nf4 {[%clk 0:00:59]} 29. Rd1 {[%clk 0:00:15]}  Qxf6 {[%clk 0:00:58]} 30. Rd7 {[%clk 0:00:15]}  Bc8 {[%clk 0:00:56]} 31. Rc7 {[%clk 0:00:15]}  Be6 {[%clk 0:00:47]} 32. Bxe6 {[%clk 0:00:15]}  Qxe6 {[%clk 0:00:44]} 33. a3 {[%clk 0:00:15]}  Qf6 {[%clk 0:00:43]} 34. Qe3 {[%clk 0:00:15]}  Kg7 {[%clk 0:00:37]} 35. Qc5 {[%clk 0:00:14]}  Ne6 {[%clk 0:00:36]} 36. Nd5 {[%clk 0:00:14]}  Qf1+ {[%clk 0:00:34]} 37. Qc1 {[%clk 0:00:15]}  Qg2 {[%clk 0:00:31]} 38. Rc4 {[%clk 0:00:12]}  Nd4 {[%clk 0:00:30]} 39. Qe3 {[%clk 0:00:11]}  Rb8 {[%clk 0:00:29]} 40. b4 {[%clk 0:00:06]}  h5 {[%clk 0:00:27]} 41. Rxd4 {[%clk 0:00:07]}  exd4 {[%clk 0:00:27]} 42. Qxd4+ {[%clk 0:00:07]}  Kh6 {[%clk 0:00:27]} 43. Qe3+ {[%clk 0:00:08]}  Kh7 {[%clk 0:00:27]} 44. Nf6+ {[%clk 0:00:08]}  Kg7 {[%clk 0:00:27]} 45. Qd4 {[%clk 0:00:06]}  Qf1+ {[%clk 0:00:27]} 0-1

[Event "December 5 Early 2023"]
[Site "https://www.chess.com"]
[Date "2023.12.05"]
[Round "3"]
[White "Nguyen, Ngoc Truong Son"]
[Black "Ambartsumova, Karina"]
[Result "1-0"]
[Board "58"]
[TimeControl "180+1"]
[WhiteFideId "12401110"]
[BlackFideId "4166299"]
[WhiteElo "2930"]
[BlackElo "2623"]
[WhiteTeam "VIE"]
[BlackTeam "RUS"]
[WhiteClock "0:00:21"]
[BlackClock "0:00:00"]

1. e4 {[%clk 0:03:00]}  e5 {[%clk 0:02:59]} 2. Nf3 {[%clk 0:03:01]}  Nc6 {[%clk 0:03:00]} 3. Nc3 {[%clk 0:03:01]}  Nf6 {[%clk 0:02:59]} 4. Bb5 {[%clk 0:03:01]}  Nd4 {[%clk 0:02:56]} 5. Bc4 {[%clk 0:03:01]}  Bc5 {[%clk 0:02:56]} 6. d3 {[%clk 0:03:01]}  d6 {[%clk 0:02:39]} 7. h3 {[%clk 0:03:00]}  h6 {[%clk 0:02:38]} 8. Be3 {[%clk 0:03:00]}  Nxf3+ {[%clk 0:02:33]} 9. Qxf3 {[%clk 0:03:01]}  Be6 {[%clk 0:02:32]} 10. Bxe6 {[%clk 0:02:59]}  fxe6 {[%clk 0:02:33]} 11. Bxc5 {[%clk 0:03:00]}  dxc5 {[%clk 0:02:33]} 12. Qg3 {[%clk 0:03:01]}  Qe7 {[%clk 0:01:42]} 13. Qxe5 {[%clk 0:03:00]}  O-O-O {[%clk 0:01:42]} 14. O-O-O {[%clk 0:03:00]}  Rhf8 {[%clk 0:01:39]} 15. Rhf1 {[%clk 0:02:59]}  Kb8 {[%clk 0:01:33]} 16. Kb1 {[%clk 0:02:58]}  a6 {[%clk 0:01:22]} 17. a3 {[%clk 0:02:58]}  Nd7 {[%clk 0:01:14]} 18. Qg3 {[%clk 0:02:58]}  Nb6 {[%clk 0:01:08]} 19. f4 {[%clk 0:02:57]}  Rd4 {[%clk 0:01:04]} 20. Qe3 {[%clk 0:02:56]}  Rfd8 {[%clk 0:01:03]} 21. g4 {[%clk 0:02:52]}  e5 {[%clk 0:00:54]} 22. fxe5 {[%clk 0:02:51]}  Qxe5 {[%clk 0:00:54]} 23. Rf5 {[%clk 0:02:50]}  Qe7 {[%clk 0:00:52]} 24. Rdf1 {[%clk 0:02:49]}  c4 {[%clk 0:00:52]} 25. Rf7 {[%clk 0:02:44]}  Qe6 {[%clk 0:00:36]} 26. Rf8 {[%clk 0:02:41]}  Qc8 {[%clk 0:00:20]} 27. Qxd4 {[%clk 0:02:30]}  Rxf8 {[%clk 0:00:20]} 28. Rxf8 {[%clk 0:02:29]}  Qxf8 {[%clk 0:00:21]} 29. a4 {[%clk 0:02:06]}  cxd3 {[%clk 0:00:18]} 30. cxd3 {[%clk 0:02:05]}  Qf1+ {[%clk 0:00:18]} 31. Ka2 {[%clk 0:02:05]}  Qxh3 {[%clk 0:00:18]} 32. e5 {[%clk 0:01:45]}  Qh4 {[%clk 0:00:18]} 33. a5 {[%clk 0:01:36]}  Nc8 {[%clk 0:00:19]} 34. Qd7 {[%clk 0:01:33]}  Qg5 {[%clk 0:00:14]} 35. d4 {[%clk 0:01:25]}  Qe7 {[%clk 0:00:14]} 36. e6 {[%clk 0:01:19]}  g6 {[%clk 0:00:11]} 37. Nd5 {[%clk 0:01:15]}  Qd6 {[%clk 0:00:11]} 38. Qxd6 {[%clk 0:01:08]}  Nxd6 {[%clk 0:00:11]} 39. Nf6 {[%clk 0:01:06]}  h5 {[%clk 0:00:07]} 40. gxh5 {[%clk 0:01:01]}  gxh5 {[%clk 0:00:08]} 41. Nxh5 {[%clk 0:01:01]}  Kc8 {[%clk 0:00:08]} 42. Kb3 {[%clk 0:00:44]}  Kd8 {[%clk 0:00:08]} 43. d5 {[%clk 0:00:42]}  Ke7 {[%clk 0:00:08]} 44. Kb4 {[%clk 0:00:39]}  Ne4 {[%clk 0:00:04]} 45. Kc4 {[%clk 0:00:30]}  c6 {[%clk 0:00:02]} 46. Kd4 {[%clk 0:00:22]}  cxd5 {[%clk 0:00:01]} 47. Kxd5 {[%clk 0:00:22]}  Ng5 {[%clk 0:00:02]} 48. Nf4 {[%clk 0:00:22]}  Nh7 {[%clk 0:00:00]} 49. Ke5 {[%clk 0:00:21]} 1-0

[Event "December 5 Early 2023"]
[Site "https://www.chess.com"]
[Date "2023.12.05"]
[Round "3"]
[White "Popov, Konstantin"]
[Black "Espinoza Villanueva, Rodrigo"]
[Result "1-0"]
[Board "60"]
[TimeControl "180+1"]
[WhiteFideId "34137910"]
[BlackFideId "5140188"]
[WhiteElo "2865"]
[BlackElo "2609"]
[WhiteTeam "FID"]
[BlackTeam "MEX"]
[WhiteClock "0:01:59"]
[BlackClock "0:00:12"]

1. e4 {[%clk 0:03:00]}  c5 {[%clk 0:02:55]} 2. Nf3 {[%clk 0:03:00]}  Nc6 {[%clk 0:02:55]} 3. d4 {[%clk 0:03:01]}  cxd4 {[%clk 0:02:56]} 4. Nxd4 {[%clk 0:03:01]}  Nf6 {[%clk 0:02:56]} 5. Nc3 {[%clk 0:03:01]}  e5 {[%clk 0:02:57]} 6. Ndb5 {[%clk 0:03:02]}  d6 {[%clk 0:02:57]} 7. Bg5 {[%clk 0:03:02]}  a6 {[%clk 0:02:57]} 8. Na3 {[%clk 0:03:03]}  b5 {[%clk 0:02:57]} 9. Bxf6 {[%clk 0:03:03]}  gxf6 {[%clk 0:02:57]} 10. Nd5 {[%clk 0:03:04]}  f5 {[%clk 0:02:58]} 11. g3 {[%clk 0:03:04]}  Bg7 {[%clk 0:02:57]} 12. Bg2 {[%clk 0:03:04]}  fxe4 {[%clk 0:02:58]} 13. Bxe4 {[%clk 0:03:05]}  Rb8 {[%clk 0:02:54]} 14. Qh5 {[%clk 0:03:02]}  Ne7 {[%clk 0:02:23]} 15. c3 {[%clk 0:02:59]}  h6 {[%clk 0:02:00]} 16. Nc2 {[%clk 0:02:57]}  O-O {[%clk 0:01:59]} 17. Nce3 {[%clk 0:02:55]}  Be6 {[%clk 0:01:52]} 18. Rd1 {[%clk 0:02:54]}  Rc8 {[%clk 0:01:43]} 19. Nxe7+ {[%clk 0:02:50]}  Qxe7 {[%clk 0:01:43]} 20. Nf5 {[%clk 0:02:51]}  Bxf5 {[%clk 0:01:41]} 21. Qxf5 {[%clk 0:02:52]}  Rfd8 {[%clk 0:01:39]} 22. Bd5 {[%clk 0:02:47]}  Rc5 {[%clk 0:01:36]} 23. O-O {[%clk 0:02:47]}  Qf6 {[%clk 0:01:33]} 24. Qe4 {[%clk 0:02:46]}  a5 {[%clk 0:01:27]} 25. Rd3 {[%clk 0:02:46]}  Qe7 {[%clk 0:01:23]} 26. Rfd1 {[%clk 0:02:45]}  Rb8 {[%clk 0:01:17]} 27. Rf3 {[%clk 0:02:44]}  Rf8 {[%clk 0:01:17]} 28. h4 {[%clk 0:02:43]}  Qa7 {[%clk 0:01:08]} 29. Qf5 {[%clk 0:02:41]}  b4 {[%clk 0:01:07]} 30. Be4 {[%clk 0:02:40]}  Rd8 {[%clk 0:00:59]} 31. Bd5 {[%clk 0:02:09]}  Rf8 {[%clk 0:00:43]} 32. c4 {[%clk 0:02:09]}  a4 {[%clk 0:00:41]} 33. b3 {[%clk 0:02:07]}  axb3 {[%clk 0:00:40]} 34. axb3 {[%clk 0:02:08]}  Qe7 {[%clk 0:00:30]} 35. Be4 {[%clk 0:02:01]}  Rb8 {[%clk 0:00:28]} 36. Qh7+ {[%clk 0:02:01]}  Kf8 {[%clk 0:00:12]} 37. Bg6 {[%clk 0:01:59]} 1-0

[Event "December 5 Early 2023"]
[Site "https://www.chess.com"]
[Date "2023.12.05"]
[Round "3"]
[White "Boor, Carl"]
[Black "Bachmann, Axel"]
[Result "0-1"]
[Board "61"]
[TimeControl "180+1"]
[WhiteFideId "2017008"]
[BlackFideId "3700488"]
[WhiteElo "2591"]
[BlackElo "2843"]
[WhiteTeam "USA"]
[BlackTeam "PAR"]
[WhiteClock "0:00:00"]
[BlackClock "0:01:37"]

1. d4 {[%clk 0:03:00]}  Nf6 {[%clk 0:02:59]} 2. c4 {[%clk 0:03:01]}  c5 {[%clk 0:02:59]} 3. d5 {[%clk 0:03:00]}  e6 {[%clk 0:03:00]} 4. Nc3 {[%clk 0:03:00]}  exd5 {[%clk 0:03:00]} 5. cxd5 {[%clk 0:03:01]}  d6 {[%clk 0:03:01]} 6. e4 {[%clk 0:03:01]}  g6 {[%clk 0:03:02]} 7. f4 {[%clk 0:03:01]}  Bg7 {[%clk 0:03:02]} 8. Bb5+ {[%clk 0:03:00]}  Nfd7 {[%clk 0:03:02]} 9. a4 {[%clk 0:02:51]}  O-O {[%clk 0:03:00]} 10. Nf3 {[%clk 0:02:51]}  Na6 {[%clk 0:03:01]} 11. h3 {[%clk 0:02:46]}  Nb4 {[%clk 0:03:01]} 12. O-O {[%clk 0:02:44]}  a6 {[%clk 0:03:01]} 13. Bc4 {[%clk 0:02:14]}  Re8 {[%clk 0:02:58]} 14. Re1 {[%clk 0:02:08]}  Rb8 {[%clk 0:02:57]} 15. Be3 {[%clk 0:01:59]}  Nf6 {[%clk 0:02:34]} 16. e5 {[%clk 0:01:49]}  Nd7 {[%clk 0:02:23]} 17. e6 {[%clk 0:01:15]}  Nb6 {[%clk 0:02:23]} 18. Bb3 {[%clk 0:00:25]}  fxe6 {[%clk 0:02:09]} 19. dxe6 {[%clk 0:00:24]}  c4 {[%clk 0:02:10]} 20. Ba2 {[%clk 0:00:23]}  Bxe6 {[%clk 0:02:04]} 21. a5 {[%clk 0:00:20]}  N6d5 {[%clk 0:01:45]} 22. Bxc4 {[%clk 0:00:15]}  Nxe3 {[%clk 0:01:45]} 23. Bxe6+ {[%clk 0:00:11]}  Rxe6 {[%clk 0:01:45]} 24. Qb3 {[%clk 0:00:11]}  d5 {[%clk 0:01:41]} 25. Qxb4 {[%clk 0:00:07]}  Nc2 {[%clk 0:01:40]} 26. Qc5 {[%clk 0:00:02]}  Rxe1+ {[%clk 0:01:37]} 27. Rxe1 {[%clk 0:00:00]}  Rc8 {[%clk 0:01:37]} 0-1

[Event "December 5 Early 2023"]
[Site "https://www.chess.com"]
[Date "2023.12.05"]
[Round "3"]
[White "Jaskolka, Tomasz"]
[Black "Rustemov, Alexander"]
[Result "0-1"]
[Board "63"]
[TimeControl "180+1"]
[WhiteFideId "1170791"]
[BlackFideId "4119002"]
[WhiteElo "2550"]
[BlackElo "2817"]
[WhiteTeam "POL"]
[BlackTeam "RUS"]
[WhiteClock "0:00:43"]
[BlackClock "0:01:05"]

1. e4 {[%clk 0:03:00]}  e6 {[%clk 0:03:00]} 2. d4 {[%clk 0:02:53]}  d5 {[%clk 0:03:00]} 3. Nc3 {[%clk 0:02:54]}  dxe4 {[%clk 0:03:00]} 4. Nxe4 {[%clk 0:02:54]}  Bd7 {[%clk 0:03:01]} 5. Nf3 {[%clk 0:02:53]}  Bc6 {[%clk 0:03:01]} 6. Bd3 {[%clk 0:02:53]}  Nd7 {[%clk 0:03:02]} 7. c3 {[%clk 0:02:49]}  Ngf6 {[%clk 0:03:03]} 8. Nxf6+ {[%clk 0:02:46]}  Nxf6 {[%clk 0:03:03]} 9. Bg5 {[%clk 0:02:45]}  Bxf3 {[%clk 0:03:01]} 10. Qxf3 {[%clk 0:02:45]}  Qd5 {[%clk 0:03:02]} 11. Qxd5 {[%clk 0:02:41]}  Nxd5 {[%clk 0:03:03]} 12. O-O-O {[%clk 0:02:40]}  Be7 {[%clk 0:03:01]} 13. Bd2 {[%clk 0:02:40]}  Rd8 {[%clk 0:02:57]} 14. h4 {[%clk 0:02:39]}  h5 {[%clk 0:02:55]} 15. g3 {[%clk 0:02:31]}  c6 {[%clk 0:02:54]} 16. Rhe1 {[%clk 0:02:30]}  g6 {[%clk 0:02:53]} 17. a3 {[%clk 0:02:28]}  Bf6 {[%clk 0:02:48]} 18. Kc2 {[%clk 0:02:20]}  Kf8 {[%clk 0:02:49]} 19. Be4 {[%clk 0:02:09]}  Kg7 {[%clk 0:02:48]} 20. b3 {[%clk 0:02:04]}  Rd7 {[%clk 0:02:47]} 21. a4 {[%clk 0:01:55]}  Rhd8 {[%clk 0:02:46]} 22. b4 {[%clk 0:01:52]}  a6 {[%clk 0:02:41]} 23. Bd3 {[%clk 0:01:49]}  Nb6 {[%clk 0:02:16]} 24. Kb3 {[%clk 0:01:47]}  Nc8 {[%clk 0:02:06]} 25. Bf4 {[%clk 0:01:41]}  Ne7 {[%clk 0:02:05]} 26. Bf1 {[%clk 0:01:36]}  Nd5 {[%clk 0:02:04]} 27. Bc1 {[%clk 0:01:33]}  b5 {[%clk 0:02:00]} 28. axb5 {[%clk 0:01:31]}  axb5 {[%clk 0:02:00]} 29. Bd2 {[%clk 0:01:30]}  Ra8 {[%clk 0:01:59]} 30. Ra1 {[%clk 0:01:29]}  Rda7 {[%clk 0:02:00]} 31. Kb2 {[%clk 0:01:27]}  Kf8 {[%clk 0:01:50]} 32. Rxa7 {[%clk 0:01:26]}  Rxa7 {[%clk 0:01:51]} 33. Ra1 {[%clk 0:01:27]}  Rxa1 {[%clk 0:01:51]} 34. Kxa1 {[%clk 0:01:28]}  e5 {[%clk 0:01:40]} 35. dxe5 {[%clk 0:01:26]}  Bxe5 {[%clk 0:01:41]} 36. Bg2 {[%clk 0:01:11]}  Nxc3 {[%clk 0:01:28]} 37. Bxc3 {[%clk 0:01:06]}  Bxc3+ {[%clk 0:01:28]} 38. Kb1 {[%clk 0:01:06]}  Bxb4 {[%clk 0:01:25]} 39. Bxc6 {[%clk 0:01:02]}  Be1 {[%clk 0:01:25]} 40. Bxb5 {[%clk 0:00:55]}  Bxf2 {[%clk 0:01:25]} 41. Kc2 {[%clk 0:00:50]}  Bxg3 {[%clk 0:01:24]} 42. Kd3 {[%clk 0:00:51]}  Bxh4 {[%clk 0:01:25]} 43. Ke4 {[%clk 0:00:52]}  Kg7 {[%clk 0:01:24]} 44. Kf3 {[%clk 0:00:52]}  f5 {[%clk 0:01:22]} 45. Kf4 {[%clk 0:00:47]}  Kf6 {[%clk 0:01:21]} 46. Be8 {[%clk 0:00:48]}  Bg5+ {[%clk 0:01:20]} 47. Kg3 {[%clk 0:00:48]}  Bc1 {[%clk 0:01:20]} 48. Kh3 {[%clk 0:00:48]}  Ba3 {[%clk 0:01:19]} 49. Kg3 {[%clk 0:00:48]}  Bd6+ {[%clk 0:01:18]} 50. Kh3 {[%clk 0:00:49]}  Kg7 {[%clk 0:01:15]} 51. Kh4 {[%clk 0:00:48]}  Kh6 {[%clk 0:01:15]} 52. Bd7 {[%clk 0:00:45]}  g5+ {[%clk 0:01:13]} 53. Kh3 {[%clk 0:00:46]}  g4+ {[%clk 0:01:12]} 54. Kh4 {[%clk 0:00:45]}  Be7+ {[%clk 0:01:12]} 55. Kg3 {[%clk 0:00:46]}  Kg5 {[%clk 0:01:12]} 56. Kg2 {[%clk 0:00:45]}  h4 {[%clk 0:01:10]} 57. Kh2 {[%clk 0:00:45]}  Bd6+ {[%clk 0:01:10]} 58. Kg2 {[%clk 0:00:46]}  h3+ {[%clk 0:01:10]} 59. Kh1 {[%clk 0:00:46]}  g3 {[%clk 0:01:05]} 60. Bc6 {[%clk 0:00:45]}  g2+ {[%clk 0:01:05]} 61. Kg1 {[%clk 0:00:42]}  Bc5+ {[%clk 0:01:05]} 62. Kh2 {[%clk 0:00:43]}  g1=Q+ {[%clk 0:01:05]} 0-1

[Event "December 5 Early 2023"]
[Site "https://www.chess.com"]
[Date "2023.12.05"]
[Round "3"]
[White "Makhnev, Denis"]
[Black "Petrukhina, Olga"]
[Result "1-0"]
[Board "69"]
[TimeControl "180+1"]
[WhiteFideId "13707647"]
[BlackFideId "13703935"]
[WhiteElo "2683"]
[BlackElo "2239"]
[WhiteTeam "KAZ"]
[BlackTeam "KAZ"]
[WhiteClock "0:02:41"]
[BlackClock "0:01:18"]

1. Nf3 {[%clk 0:03:00]}  Nf6 {[%clk 0:02:57]} 2. c4 {[%clk 0:03:00]}  e6 {[%clk 0:02:57]} 3. g3 {[%clk 0:02:59]}  d5 {[%clk 0:02:56]} 4. Bg2 {[%clk 0:03:00]}  Be7 {[%clk 0:02:56]} 5. O-O {[%clk 0:03:00]}  O-O {[%clk 0:02:56]} 6. d4 {[%clk 0:03:00]}  dxc4 {[%clk 0:02:54]} 7. Ne5 {[%clk 0:02:59]}  Nc6 {[%clk 0:02:54]} 8. Bxc6 {[%clk 0:02:58]}  bxc6 {[%clk 0:02:54]} 9. Nxc6 {[%clk 0:02:59]}  Qe8 {[%clk 0:02:54]} 10. Nxe7+ {[%clk 0:03:00]}  Qxe7 {[%clk 0:02:55]} 11. Qc2 {[%clk 0:03:00]}  e5 {[%clk 0:02:53]} 12. Rd1 {[%clk 0:02:59]}  exd4 {[%clk 0:02:36]} 13. Rxd4 {[%clk 0:02:58]}  Re8 {[%clk 0:02:17]} 14. Nc3 {[%clk 0:02:57]}  Be6 {[%clk 0:02:11]} 15. Bg5 {[%clk 0:02:56]}  h6 {[%clk 0:02:10]} 16. Bxf6 {[%clk 0:02:56]}  Qxf6 {[%clk 0:02:11]} 17. Rad1 {[%clk 0:02:55]}  Rab8 {[%clk 0:02:03]} 18. R1d2 {[%clk 0:02:52]}  Qe5 {[%clk 0:01:55]} 19. Qe4 {[%clk 0:02:49]}  Qxe4 {[%clk 0:01:44]} 20. Rxe4 {[%clk 0:02:46]}  Rb5 {[%clk 0:01:18]} 21. Nxb5 {[%clk 0:02:41]} 1-0

[Event "December 5 Early 2023"]
[Site "https://www.chess.com"]
[Date "2023.12.05"]
[Round "3"]
[White "Bilan, Danila"]
[Black "Praggnanandhaa R"]
[Result "0-1"]
[Board "70"]
[TimeControl "180+1"]
[WhiteFideId "24161918"]
[BlackFideId "25059530"]
[WhiteElo "2542"]
[BlackElo "3006"]
[WhiteTeam "RUS"]
[BlackTeam "IND"]
[WhiteClock "0:00:55"]
[BlackClock "0:02:17"]

1. d4 {[%clk 0:02:58]}  d6 {[%clk 0:02:59]} 2. Nf3 {[%clk 0:02:58]}  Nf6 {[%clk 0:02:59]} 3. c4 {[%clk 0:02:58]}  g6 {[%clk 0:03:00]} 4. Nc3 {[%clk 0:02:58]}  Nc6 {[%clk 0:03:00]} 5. e4 {[%clk 0:02:59]}  Bg7 {[%clk 0:03:00]} 6. Be2 {[%clk 0:02:59]}  e5 {[%clk 0:02:58]} 7. d5 {[%clk 0:02:59]}  Ne7 {[%clk 0:02:58]} 8. O-O {[%clk 0:02:59]}  Nd7 {[%clk 0:02:57]} 9. Bg5 {[%clk 0:02:56]}  h6 {[%clk 0:02:57]} 10. Bh4 {[%clk 0:02:56]}  O-O {[%clk 0:02:56]} 11. Nd2 {[%clk 0:02:56]}  f5 {[%clk 0:02:55]} 12. f3 {[%clk 0:02:56]}  f4 {[%clk 0:02:53]} 13. b4 {[%clk 0:02:55]}  g5 {[%clk 0:02:53]} 14. Bf2 {[%clk 0:02:55]}  h5 {[%clk 0:02:54]} 15. c5 {[%clk 0:02:55]}  Ng6 {[%clk 0:02:54]} 16. Nc4 {[%clk 0:02:55]}  Nf6 {[%clk 0:02:43]} 17. Qc2 {[%clk 0:02:33]}  g4 {[%clk 0:02:42]} 18. cxd6 {[%clk 0:02:19]}  cxd6 {[%clk 0:02:42]} 19. Nb5 {[%clk 0:02:19]}  Ne8 {[%clk 0:02:36]} 20. Nxa7 {[%clk 0:02:07]}  g3 {[%clk 0:02:35]} 21. Bb6 {[%clk 0:01:59]}  Qh4 {[%clk 0:02:22]} 22. h3 {[%clk 0:01:59]}  Bxh3 {[%clk 0:02:22]} 23. gxh3 {[%clk 0:02:00]}  Qxh3 {[%clk 0:02:22]} 24. Bd3 {[%clk 0:01:49]}  Nh4 {[%clk 0:02:20]} 25. Rf2 {[%clk 0:01:00]}  gxf2+ {[%clk 0:02:18]} 26. Qxf2 {[%clk 0:00:55]}  Nxf3+ {[%clk 0:02:17]} 0-1

[Event "December 5 Early 2023"]
[Site "https://www.chess.com"]
[Date "2023.12.05"]
[Round "3"]
[White "Tao, Sihan"]
[Black "Drygalov, Sergey"]
[Result "0-1"]
[Board "71"]
[TimeControl "180+1"]
[WhiteFideId "30982677"]
[BlackFideId "24171743"]
[WhiteElo "2540"]
[BlackElo "2944"]
[WhiteTeam "USA"]
[BlackTeam "RUS"]
[WhiteClock "0:01:10"]
[BlackClock "0:02:25"]

1. e4 {[%clk 0:03:00]}  c5 {[%clk 0:03:00]} 2. Nf3 {[%clk 0:03:01]}  d6 {[%clk 0:03:00]} 3. d4 {[%clk 0:03:01]}  cxd4 {[%clk 0:03:01]} 4. Nxd4 {[%clk 0:03:02]}  Nf6 {[%clk 0:03:02]} 5. Nc3 {[%clk 0:03:03]}  a6 {[%clk 0:03:02]} 6. f3 {[%clk 0:03:03]}  e5 {[%clk 0:03:03]} 7. Nb3 {[%clk 0:03:03]}  Be6 {[%clk 0:03:03]} 8. Be3 {[%clk 0:03:03]}  Nbd7 {[%clk 0:03:04]} 9. Qd2 {[%clk 0:03:02]}  b5 {[%clk 0:03:02]} 10. O-O-O {[%clk 0:02:58]}  Nb6 {[%clk 0:03:02]} 11. Bxb6 {[%clk 0:02:53]}  Qxb6 {[%clk 0:03:02]} 12. Nd5 {[%clk 0:02:53]}  Bxd5 {[%clk 0:02:59]} 13. exd5 {[%clk 0:02:54]}  Be7 {[%clk 0:02:59]} 14. Kb1 {[%clk 0:02:39]}  a5 {[%clk 0:02:58]} 15. Qd3 {[%clk 0:02:34]}  Rb8 {[%clk 0:02:58]} 16. Nd2 {[%clk 0:02:25]}  O-O {[%clk 0:02:57]} 17. Ne4 {[%clk 0:02:26]}  Nxe4 {[%clk 0:02:56]} 18. fxe4 {[%clk 0:02:26]}  b4 {[%clk 0:02:52]} 19. a4 {[%clk 0:02:07]}  bxa3 {[%clk 0:02:51]} 20. Qxa3 {[%clk 0:02:07]}  Rfc8 {[%clk 0:02:50]} 21. Bd3 {[%clk 0:02:04]}  Bg5 {[%clk 0:02:50]} 22. Rhf1 {[%clk 0:02:03]}  Be3 {[%clk 0:02:50]} 23. Ka2 {[%clk 0:01:57]}  Bc5 {[%clk 0:02:46]} 24. Qb3 {[%clk 0:01:56]}  Qa7 {[%clk 0:02:45]} 25. Qa4 {[%clk 0:01:55]}  Rb4 {[%clk 0:02:45]} 26. Qa3 {[%clk 0:01:56]}  Rcb8 {[%clk 0:02:30]} 27. b3 {[%clk 0:01:26]}  a4 {[%clk 0:02:27]} 28. Kb1 {[%clk 0:01:13]}  Rxb3+ {[%clk 0:02:25]} 29. cxb3 {[%clk 0:01:10]}  Bxa3 {[%clk 0:02:25]} 0-1

[Event "December 5 Early 2023"]
[Site "https://www.chess.com"]
[Date "2023.12.05"]
[Round "3"]
[White "Chylewski, Patryk"]
[Black "Ashraf, Artin"]
[Result "0-1"]
[Board "75"]
[TimeControl "180+1"]
[WhiteFideId "1186191"]
[BlackFideId "22514805"]
[WhiteElo "2538"]
[BlackElo "2909"]
[WhiteTeam "POL"]
[BlackTeam "IRI"]
[WhiteClock "0:00:17"]
[BlackClock "0:01:43"]

1. Nf3 {[%clk 0:03:00]}  d5 {[%clk 0:02:51]} 2. d4 {[%clk 0:03:00]}  Nf6 {[%clk 0:02:49]} 3. c4 {[%clk 0:03:00]}  c6 {[%clk 0:02:48]} 4. cxd5 {[%clk 0:02:59]}  cxd5 {[%clk 0:02:47]} 5. Nc3 {[%clk 0:03:00]}  Ne4 {[%clk 0:02:39]} 6. Qb3 {[%clk 0:02:44]}  Nxc3 {[%clk 0:02:37]} 7. bxc3 {[%clk 0:02:45]}  Nc6 {[%clk 0:02:36]} 8. e4 {[%clk 0:02:24]}  dxe4 {[%clk 0:02:32]} 9. Ng5 {[%clk 0:02:24]}  e6 {[%clk 0:02:31]} 10. Nxe4 {[%clk 0:02:22]}  Be7 {[%clk 0:02:27]} 11. Be2 {[%clk 0:02:20]}  O-O {[%clk 0:02:27]} 12. O-O {[%clk 0:02:20]}  b6 {[%clk 0:02:27]} 13. Bf3 {[%clk 0:02:19]}  Bb7 {[%clk 0:02:26]} 14. Bf4 {[%clk 0:01:47]}  Rc8 {[%clk 0:02:24]} 15. Rac1 {[%clk 0:01:47]}  Na5 {[%clk 0:02:18]} 16. Qb1 {[%clk 0:01:47]}  Bd5 {[%clk 0:02:18]} 17. Rfd1 {[%clk 0:01:36]}  Qd7 {[%clk 0:02:16]} 18. Rd3 {[%clk 0:01:14]}  Qb7 {[%clk 0:02:06]} 19. Ng5 {[%clk 0:01:05]}  h6 {[%clk 0:02:01]} 20. Bxd5 {[%clk 0:00:45]}  Qxd5 {[%clk 0:02:01]} 21. Nf3 {[%clk 0:00:42]}  Nc4 {[%clk 0:02:00]} 22. Ne5 {[%clk 0:00:40]}  Bf6 {[%clk 0:01:59]} 23. Ng4 {[%clk 0:00:32]}  Qf5 {[%clk 0:01:53]} 24. Nxf6+ {[%clk 0:00:20]}  Qxf6 {[%clk 0:01:53]} 25. Rf3 {[%clk 0:00:19]}  Qg6 {[%clk 0:01:52]} 26. Qb5 {[%clk 0:00:17]}  Rfd8 {[%clk 0:01:48]} 27. Rg3 {[%clk 0:00:17]}  Qf6 {[%clk 0:01:45]} 28. Qh5 {[%clk 0:00:17]}  Qxf4 {[%clk 0:01:43]} 0-1